Cogmind - Beta 13 @@@ ROGUE MODE // 2024.05.21 @ 11:47:03 Player: H3-RMN Result: Destroyed by G-34 Mercenary with Small Laser Performance ------------- Evolutions (0) 0 Regions Visited (2) 400 Robots Destroyed (30) 150 Value Destroyed (618) 618 Prototype IDs (0) 0 Alien Tech Used (0) 0 Bonus (0) 0 TOTAL SCORE: 1168 Bonus ------- None Cogmind --------- Core Integrity 0/250 Matter 288/300 Energy 250/250 System Corruption 9% Temperature Cool (18) Movement Treading (240) Ox1 Location -10/Mines Parts ------- > --- POWER (1) -------- Ion Engine > --- PROPULSION (2) --- Light Treads Wheel (fused) > --- UTILITY (2) ------ Large Storage Unit Tractor Beam > --- WEAPON (2) ------- Light Assault Rifle Light Assault Rifle > --- INVENTORY (15) --- Ion Engine Light Treads Light Treads Light Treads Light Treads Light Treads Compact Wheel Structural Scanner Machine Analyzer Transport Network Coupler Light Assault Rifle Light Assault Rifle Grenade Launcher Grenade Launcher Mining Laser Peak State ------------ > --- POWER ------------ Ion Engine > --- PROPULSION ------- Light Treads Wheel > --- UTILITY ---------- Medium Storage Unit Seismic Detector > --- WEAPON ----------- Small Laser Assault Rifle > --- INVENTORY -------- Ion Engine Light Treads Light Treads Light Treads Light Treads Wheel Compact Wheel Transport Network Coupler EM Pulse Gun Mining Laser [Rating: 8] Favorites ----------- Power Ion Engine Engine Ion Engine Propulsion Light Treads Treads Light Treads Wheel Wheel Utility Large Storage Unit Device Seismic Detector Storage Large Storage Unit Protection Light Armor Plating Weapon Light Assault Rifle Energy Gun Small Laser Ballistic Gun Light Assault Rifle Build | -11 -10 -10 ------- Run | Yrd Mat Min Slots Evolved . | . . . Power . | . . . Propulsion . | . . . Utility . | . . . Weapon . | . . . Parts Attached 28 | 8 20 . Power 4 | 1 3 . Engine 4 | 1 3 . Core . | . . . Reactor . | . . . Propulsion 9 | 3 6 . Treads 5 | 1 4 . Leg . | . . . Wheel 4 | 2 2 . Hover . | . . . Flight . | . . . Utility 7 | 2 5 . Device 3 | 1 2 . Storage 3 | 1 2 . Processor . | . . . Hackware . | . . . Protection 1 | . 1 . Artifact . | . . . Weapon 8 | 2 6 . Energy Gun 1 | 1 . . Energy Cannon . | . . . Ballistic Gun 7 | 1 6 . Ballistic Cannon . | . . . Launcher . | . . . Special Weapon . | . . . Impact Weapon . | . . . Slashing Weapon . | . . . Piercing Weapon . | . . . Special Melee Weapon . | . . . Unidentified Prototypes . | . . . Parts Lost 4 | . 4 . Power . | . . . Propulsion 2 | . 2 . Utility 2 | . 2 . Weapon . | . . . Highest Loss Streak 2 | . 2 . To Critical Strikes . | . . . Average Slot Usage (%) 97 | . 95 100 Engine 14 | . 14 14 Treads 14 | . 14 14 Wheel 13 | . 12 14 Device 10 | . 9 14 Storage 14 | . 14 14 Energy Gun 2 | . 3 . Ballistic Gun 25 | . 24 28 Naked Turns . | . . . Heaviest Build 28 | 14 28 28 Greatest Support 40 | 20 40 10 Greatest Overweight (x) 2 | 1 2 2 Average Overweight (x) 1 | . 1 2 Largest Inventory Capacity 15 | 8 15 15 Average Capacity 12 | 7 12 15 Most Carried 15 | 7 15 15 Average Carried 11 | 3 10 15 Final Capacity 15 | 8 15 15 Final Carried 15 | 6 15 15 Class Distribution -------------------- 68% | Mutant 31% | Scavenger-Mutant Dominant Class ---------------- Mutant | -10/Materials Mutant | -10/Mines Resources | -11 -10 -10 ----------- Run | Yrd Mat Min Matter Collected 777 | 261 486 30 Remotely 77 | . 47 30 Salvage Created 1056 | 96 960 . Parts 69 | 6 63 . Haulers Intercepted 2 | . 2 . Recyclers Shooed . | . . . Parts Field Recycled . | . . . Retrieved Matter . | . . . Parts Self-Destructed . | . . . Prevented . | . . . Kills | -11 -10 -10 ------- Run | Yrd Mat Min Combat Hostiles Destroyed 20 | . 20 . Guns 20 | . 20 . Classes Destroyed 9 | 2 7 . Worker 2 | . 2 . Builder 1 | . 1 . Tunneler 1 | 1 . . Hauler 2 | . 2 . Recycler 2 | 1 1 . Mechanic 1 | . 1 . Operator 1 | . 1 . Swarmer 6 | . 6 . Grunt 14 | . 14 . Best Kill Streak 4 | 2 4 . Combat Bots Only 3 | . 3 . Max Kills in Single Turn 1 | 1 1 . Gunslinging . | . . . Exploded . | . . . Melee . | . . . Uniques/NPCs Destroyed . | . . . Combat | -11 -10 -10 -------- Run | Yrd Mat Min Hostile Shots Fired 108 | . 92 16 Missed 21 | . 18 3 Damage Taken 1056 | . 877 179 Core 252 | . 183 69 Absorbed by Shields . | . . . Core Remaining (%) 100 | 100 . . Volleys Fired 102 | 6 88 8 Largest 2 | 2 2 2 Hottest 60 | 60 60 40 Shots Fired 205 | 12 176 17 Gun 205 | 12 176 17 Cannon . | . . . Launcher . | . . . Special . | . . . Kinetic 159 | 6 136 17 Thermal 46 | 6 40 . Explosive . | . . . Electromagnetic . | . . . Robot Hit Streak 14 | 9 14 7 Robot Miss Streak 4 | 1 4 1 Penetration Max . | . . . Secondary Targets 1 | . 1 . Max Gunslinging Chain 1 | . 1 . Shots Hit Robots 145 | 10 121 14 Core Hits 65 | 3 55 7 Critical Kills . | . . . Critical Parts Destroyed 1 | 1 . . Critical Strikes 1 | 1 . . Destroy 1 | 1 . . Melee Attacks . | . . . Impact . | . . . Slashing . | . . . Piercing . | . . . Sneak Attacks . | . . . Combat Hostiles . | . . . Follow-up Attacks . | . . . Damage Inflicted 1553 | 113 1327 113 Guns 1553 | 113 1327 113 Cannons . | . . . Explosions . | . . . Melee . | . . . Ramming . | . . . Kinetic 1063 | 48 902 113 Thermal 490 | 65 425 . Explosive . | . . . Electromagnetic . | . . . Impact . | . . . Slashing . | . . . Piercing . | . . . Highest Corruption 9 | . 9 9 Average Corruption 6 | . 4 9 Corruption Purged . | . . . Corruption Blocked . | . . . Effects 34 | . 20 14 Message Errors 8 | . 4 4 Matter Fused 8 | . 5 3 Heat Flow Errors 5 | . 3 2 Energy Discharges 5 | . 3 2 Parts Fused 1 | . 1 . Data Loss (minor) 1 | . . 1 Data Loss (major) 2 | . 1 1 Misfires 2 | . 1 1 Alerts 1 | . 1 . Weapon Failures 1 | . 1 . Overload Shots . | . . . Overflow Damage 29 | . 29 . Projectiles . | . . . Explosions 29 | . 29 . Melee . | . . . Knockbacks . | . . . Impact . | . . . Kinetic . | . . . Secondary . | . . . Self-Inflicted Damage 101 | . 101 . Shots 1 | . 1 . Rammed . | . . . Targets Rammed . | . . . Kicked . | . . . Crushed . | . . . Highest Temperature 225 | . 225 188 Average Temperature 55 | . 55 57 Received Heat Transfer 489 | . 369 120 Siege Activations . | . . . Robots Corrupted . | . . . Combat Hostiles . | . . . Parts Fried . | . . . Impact Corruptions . | . . . Robots Melted . | . . . Combat Hostiles . | . . . Parts Melted . | . . . Heat Transferred 1050 | 150 900 . Parts Sabotaged . | . . . Parts Stolen . | . . . Parts Stripped . | . . . Power Chain Reactions . | . . . Alert | -11 -10 -10 ------- Run | Yrd Mat Min Peak Influence 328 | 10 328 127 Initial 127 | . 6 127 Average 175 | 5 204 127 Maximum Alert Level 1 | . 1 . Low Security (%) 64 | 100 49 100 Level 1 35 | . 50 . Level 2 . | . . . Level 3 . | . . . Level 4 . | . . . Level 5 . | . . . High Security . | . . . Max Security . | . . . Squads Dispatched 8 | . 8 . Investigation 7 | . 7 . Extermination . | . . . Reinforcement 1 | . 1 . Assault . | . . . Garrison . | . . . Intercept . | . . . Searches Triggered . | . . . Construction Impeded . | . . . Haulers Reinforced . | . . . Active Scanning Responses . | . . . Cargo Convoy Interrupts . | . . . Stealth | -11 -10 -10 --------- Run | Yrd Mat Min Distress Signals 2 | . 2 . Communications Jammed . | . . . Distress Signals . | . . . Times Spotted 35 | . 33 2 Peak Tracking Total 5 | . 5 2 Tactical Retreats . | . . . Traps | -11 -10 -10 ------- Run | Yrd Mat Min Traps Triggered 7 | . 7 . Indirectly . | . . . Trap Hack Attempts . | . . . Triggered . | . . . Disarmed . | . . . Reprogrammed . | . . . Reused . | . . . Traps Extracted . | . . . Installed . | . . . Triggered . | . . . Machines | -11 -10 -10 ---------- Run | Yrd Mat Min Machines Disabled 1 | . 1 . Max in Single Turn 1 | . 1 . Machines Repaired . | . . . Machines Dismantled . | . . . Machines Sabotaged . | . . . Overloaded Fab Kills . | . . . Hacking | -11 -10 -10 --------- Run | Yrd Mat Min Machines Accessed 7 | . 7 . Terminals 4 | . 4 . Fabricators . | . . . Repair Stations 1 | . 1 . Recycling Units 2 | . 2 . Scanalyzers . | . . . Garrison Access . | . . . Total Hacks 20 | . 20 . Successful 9 | . 9 . Failed 10 | . 10 . Catastrophic 2 | . 2 . Database Lockouts 1 | . 1 . Manual 12 | . 12 . Terminals 13 | . 13 . Fabricators . | . . . Repair Stations 3 | . 3 . Recycling Units 4 | . 4 . Scanalyzers . | . . . Garrison Access . | . . . Terminal Hacks 3 | . 3 . Robot Analysis 2 | . 2 . Zone Layout 1 | . 1 . Fabricator Hacks . | . . . Repair Station Hacks . | . . . Recycling Unit Hacks 2 | . 2 . Report Inventory 2 | . 2 . Scanalyzer . | . . . Garrison Access Hacks . | . . . Unauthorized Hacks 4 | . 4 . Terminals 2 | . 2 . Botnet 1 | . 1 . Operators 1 | . 1 . Fabricators . | . . . Repair Stations . | . . . Recycling Units 2 | . 2 . Tunnel 2 | . 2 . Scanalyzers . | . . . Garrison Access . | . . . Data Cores Recovered . | . . . Used . | . . . Hacking Detections 5 | . 5 . Full Trace Events 3 | . 3 . Feedback Events 1 | . 1 . Corruption 1 | . 1 . Feedback Blocked . | . . . Robot Schematics Acquired . | . . . Robots Built . | . . . Authchips . | . . . Time . | . . . Total Robot Build Rating . | . . . Part Schematics Acquired . | . . . Parts Built . | . . . Authchips . | . . . Time . | . . . Total Part Build Rating . | . . . Parts Repaired . | . . . Time . | . . . Parts Recycled . | . . . Recycled Matter . | . . . Retrieved Matter . | . . . Retrieved Components . | . . . Parts Scanalyzed . | . . . Part Schematics Acquired . | . . . Parts Damaged . | . . . Bothacking | -11 -10 -10 ------------ Run | Yrd Mat Min Used RIF Installer . | . . . Robots Hacked . | . . . Non-combat . | . . . Combat . | . . . Robot Hacks Applied . | . . . Relay Couplers Released . | . . . Fabnet Peak Effective % . | . . . Robots Rewired . | . . . Allies Hacked . | . . . Hacks Repelled . | . . . Allies | -11 -10 -10 -------- Run | Yrd Mat Min Total Allies . | . . . Largest Group . | . . . Highest-Rated Group . | . . . Highest-Rated Ally . | . . . Total Orders . | . . . Ally Attacks . | . . . Total Damage . | . . . Kills . | . . . Allies Corrupted . | . . . Allies Melted . | . . . Intel | -11 -10 -10 ------- Run | Yrd Mat Min Robot Analysis Total 2 | . 2 . Derelict Logs Recovered 2 | . . 2 Drone Launches . | . . . Drone Recoveries . | . . . Exploration | -11 -10 -10 ------------- Run | Yrd Mat Min Turns Passed 1633 | 84 1150 399 Spaces Moved 1101 | 50 720 331 Core 2 | 2 . . Treads 17 | 1 16 . Legs . | . . . Wheels 1082 | 47 704 331 Hover . | . . . Flight . | . . . Fastest Speed 50 | 50 95 110 Average Speed 106 | 96 106 110 Slowest Speed 240 | 160 240 110 Overloaded Moves . | . . . Propulsion Burnouts . | . . . Robots Hopped . | . . . Cave-ins Triggered . | . . . Exploration Rate (%) 51 | 3 94 58 Regions Visited 2 Branch Regions 1 Pre-discovered Areas 3 | . 2 1 Known Exits Taken . | . . . Unknown Exits Taken 2 | 1 1 . Scrap Searched 1 | . . 1 Spaces Dug . | . . . Terrain Destroyed 19 | . 19 . Melee . | . . . Projectile . | . . . AOE 19 | . 19 . Terrain Rammed . | . . . Walls Destroyed . | . . . Machines Disabled . | . . . Actions | -11 -10 -10 --------- Run | Yrd Mat Min Total 1373 | 70 950 353 Wait 106 | . 94 12 Move 1099 | 49 719 331 Hop . | . . . Pick Up 22 | 6 15 1 Fast Attach 9 | 7 2 . Attach 4 | . 4 . Detach . | . . . Swap 15 | 1 14 . Drop 16 | 1 14 1 Fire 102 | 6 88 8 Melee . | . . . Ram . | . . . Kick . | . . . Crush . | . . . Escape Stasis . | . . . Rewire . | . . . Trap . | . . . Miscellaneous . | . . . Route ------- -11/Scrapyard -10/Materials (discovered 4 exits: [*Mat x3] / [*Min]) -10/Mines (discovered 1 exit: [*Exi]) History --------- Turn | Location | Event 13 | -11/Scrapyard | Discovered new exit (range 16) 85 | -11/Scrapyard | Entered Materials 304 | -10/Materials | Build established: Mutant 564 | -10/Materials | Discovered new exit (range 15) 637 | -10/Materials | Discovered new exit (range 16) 680 | -10/Materials | Build established: Scavenger-Mutant 725 | -10/Materials | Central database locked down 778 | -10/Materials | Core integrity fell below 50% 857 | -10/Materials | Discovered new exit (range 16) 972 | -10/Materials | Discovered new exit (range 15) 1235 | -10/Materials | Entered Mines 1250 | -10/Mines | Deemed a non-threat by the Exiles lab entrance 1251 | -10/Mines | Discovered new exit (range 5) 1391 | -10/Mines | Learned 4 Materials zone layouts 1447 | -10/Mines | Build established: Mutant 1630 | -10/Mines | Core integrity fell below 20% 1634 | -10/Mines | Destroyed by G-34 Mercenary with Small Laser Last Messages --------------- World map updated: -8/Materials. 01468_ K-01 Serf collects debris. 01471_ YSJZY8UVN6SXCDKEMT/#OFUNZ8UQNMO 7D> 01476_ K-01 Serf collects debris. 01515_ 5EMCYFC5QM3<=SKD%VLBFHNBXNLBA:ZAQPI% 01531_ System corrupted: Matter fused (-6). 01546_ System corrupted: Substantial component data lost. 01576_ Searching scrap... 01576_ Found 31 Matter. 01576_ Found Propulsion Shielding. 01576_ Found Sensor Array. 01576_ Found Structural Scanner. 01576_ Found 15 Matter. 01577_ Acquired 30 matter. 01578_ System corrupted: Component data lost. 01583_ Dropped Lgt. Treads. 01583_ Acquired Structural Scanner. 01605_ System corrupted: Heat flow error (+213). 01629_ Critical hit (Burn: +37). Map ----- +----------------------------------------------------+ | ??????????????????????????????????????## ## ? | | ??????????????????????????????????????# ?? | | ??????????????????????????????????????# ??? | | ???????????????????????????????????????# ???? | | ????????????????????????????????????????# #???? | | ????????????????????????????????????????# ##?## | | ????????????????????????????????????????# ### | | ???????????????????????????????????###### | | ??????????????????????????????###### ## """ | | ??????????????????????????????# """ | | ?????????????????? ??????????# """ | | ???????????????# ?????????# ## """ | | ?????????????## ?????????#%### | | ?????????????? ?????????#!#?## | | ?????????????? ?????????# #??# | | ??????????????? #????????#%#??## | | ???????????????? ###?????#!#???#### | | ???????????????? #?????#=#??????## | | ????????????????? ??????# #???????## | | ?????????????????? ??????# #????????# | | ??????????????????? ??????# #???????## | | ???????????????????? ??????# #????#### | | ????????????????????# #??????# #???## | | ????????????????????# #????### #???# | | ????????#???????????# ###### ##??# | | ???????? #?? #### g@t #??## | | ????????? ??""" g #???##### ### | | ?????????? ??""" ## ## ##???????# #?## | | ?????????? ??????# ?# ##????????# #??## | | ??????????? ?????? ?## #####???????### #???# | | ???????????# ????#?## #???????????# #???? | | ???????????# ?????## #???????????# ####???? | | ???????????# ????# t ##???????????# #??????? | | ???????????# ##### #??#####?????# #??????? | | ???????????# ##?## ##???## ##?????? | | ???????????# ##??# #??## ##????? | | ???????????###### ##???# #??# ###??? | | ???????????????# ####?????# #???# ^ #??? | | ???????????????# ##?######## #???##^ ## #??? | | ???????????????## #??# ##???# #^ #??? | | ????????????????# #### ###?# # # #??? | | ????????????????## ###### ###^ # # #??? | | ????????????????## #????## ## #??? | | ????????????????# ####?????# #### ####??? | | ????????????????# ##???????# ### #?????? | | ????????????????# #???????# #?????? | | ????????????????# #???????# # ######?????? | | ????????????????# #???????# ## #??????????? | | ????????????????# ##???????# ## #??????????? | | ????????????????## #????????# #####??????????? | +----------------------------------------------------+ Best States ------------- Heat Dissipation 25 Energy Generation 10 Energy Capacity 250 Matter Stores 300 Matter Capacity 300 Sight Range 16 Terrain Scan Density 10 Armor Coverage 150 Evasion (%) 41 Recoil Reduction 2 Item Schematics ----------------- None Robot Schematics ------------------ None Fabricated ------------ Nothing Alien Tech Used ----------------- None Achievements -------------- None Challenges ------------ None Game ------ Seed SurgeRagnarokLog Manual? 0 Play Time 00:13:33 Cumulative 746.2 hours Start 2024.05.21 @ 00:13:19 End 2024.05.21 @ 11:47:03 Sessions 2 Manual Loads 0 Difficulty Rogue Special Mode None Game No. 304 Rogue 274 Adventurer 3 Explorer 27 Win Type - Total 16 Types 10/3/1/1/0/1/0/0/0 Lore% 92 Gallery% 96 Achievement% 85 Wizard Run 0 Options --------- Layout 2 ASCII 0 Keyboard 0 Movement Numpad Keybinds 0 Fullscreen 2 Font 24/Smallcaps Map View 50x44 Zoom Use 0% Tactical HUD 1 Map Filters NONE Filters NONE Steam 1 RUN: efa805f2-8ba9-4a42-98e4-e1c1969758fd